Cogmind - Beta 16 @@@ ROGUE MODE // 2025.11.08 @ 14:48:29 Player: FAQ Result: Self-destructed Performance ------------- Evolutions (0) 0 Regions Visited (4) 800 Robots Destroyed (14) 70 Value Destroyed (231) 231 Prototype IDs (23) 460 Alien Tech Used (0) 0 Bonus (300) 300 TOTAL SCORE: 1861 Bonus ------- Aligned with FarCom 300 Cogmind --------- Core Integrity 17/250 Matter 300/300 Energy 250/250 System Corruption 0% Temperature Cool (0) Movement Rolling (95) Ox1 Location -9/Mines Parts ------- > --- POWER (1) -------- Ion Engine > --- PROPULSION (2) --- Wheel > --- UTILITY (2) ------ Medium Storage Unit Targeting Computer > --- WEAPON (2) ------- (None) > --- INVENTORY (10) --- Improved Ion Engine Light Treads Light Treads Aluminum Leg Medium Storage Unit Trap Reconfigurator Peak State ------------ > --- POWER ------------ Improved Ion Engine > --- PROPULSION ------- Aluminum Leg Aluminum Leg > --- UTILITY ---------- Medium Storage Unit Targeting Computer > --- WEAPON ----------- Medium Laser Medium Laser > --- INVENTORY -------- Ion Engine Light Treads Light Treads Wheel Small Storage Unit [Rating: 8] Favorites ----------- Power Ion Engine Engine Ion Engine Propulsion Light Treads Treads Light Treads Leg Aluminum Leg Wheel Wheel Utility Medium Storage Unit Device Seismic Detector Storage Medium Storage Unit Processor Targeting Computer Weapon Medium Laser Energy Gun Medium Laser Ballistic Gun Assault Rifle Build | -11 -10 -10 -10 -9 ------- Run | Yrd Mat Min Exi Min Slots Evolved . | . . . . . Power . | . . . . . Propulsion . | . . . . . Utility . | . . . . . Weapon . | . . . . . Parts Attached 17 | 6 2 8 . 1 Power 3 | 1 . 2 . . Engine 3 | 1 . 2 . . Core . | . . . . . Reactor . | . . . . . Propulsion 5 | 2 . 2 . 1 Treads 2 | 2 . . . . Leg 2 | . . 2 . . Wheel 1 | . . . . 1 Hover . | . . . . . Flight . | . . . . . Utility 5 | 1 2 2 . . Device 1 | . . 1 . . Storage 3 | 1 2 . . . Processor 1 | . . 1 . . Hackware . | . . . . . Protection . | . . . . . Artifact . | . . . . . Weapon 4 | 2 . 2 . . Energy Gun 2 | . . 2 . . Energy Cannon . | . . . . . Ballistic Gun 2 | 2 . . . . Ballistic Cannon . | . . . . . Launcher . | . . . . . Special Weapon . | . . . . . Impact Weapon . | . . . . . Slashing Weapon . | . . . . . Piercing Weapon . | . . . . . Special Melee Weapon . | . . . . . Unidentified Prototypes . | . . . . . Parts Lost 8 | . . 5 . 3 Power 1 | . . 1 . . Propulsion 2 | . . 1 . 1 Utility 1 | . . 1 . . Weapon 4 | . . 2 . 2 Highest Loss Streak 3 | . . 3 . 3 To Critical Strikes . | . . . . . Average Backups 3 | . 1 2 5 6 Power . | . . . 1 1 Propulsion 1 | . . 1 3 3 Utility . | . . 1 1 2 Weapon . | . 1 . . . Tool/Special . | . . . . . Unused Backups 3 | . . . . 3 Power . | . . . . . Propulsion 1 | . . . . 1 Utility 2 | . . . . 2 Weapon . | . . . . . Tool/Special . | . . . . . Average Slot Usage (%) 96 | . 93 96 100 97 Engine 13 | . 14 13 14 14 Treads 14 | . 28 18 . . Leg 12 | . . 9 28 25 Device 1 | . . 3 . . Storage 16 | . 21 14 14 14 Processor 8 | . . 8 14 14 Energy Gun 15 | . . 17 28 25 Ballistic Gun 11 | . 28 9 . . Peak Build Rating 8 | 6 7 8 8 8 Average Rating 6 | 5 6 6 7 7 On Entrance 5 | . 6 7 7 8 Avg Prop Armor Cover (%) 12 | . . . . 12 Naked Turns . | . . . . . Heaviest Build 21 | 14 20 21 19 19 Greatest Support 40 | 40 40 40 20 20 Greatest Overweight (x) 5 | 1 . 5 . 1 Average Overweight (x) . | . . . . . Largest Inventory Capacity 10 | 8 10 10 10 10 Average Capacity 9 | 7 8 10 10 10 Most Carried 7 | 1 3 6 6 7 Average Carried 3 | . 1 2 5 6 Final Capacity 10 | 8 10 10 10 10 Final Carried 6 | 1 3 5 6 6 Class Distribution -------------------- 100% | Mutant Dominant Class ---------------- Mutant | -10/Materials Mutant | -10/Mines Mutant | -10/Exiles Mutant | -9/Mines Resources | -11 -10 -10 -10 -9 ----------- Run | Yrd Mat Min Exi Min Matter Collected 549 | 175 214 130 30 . Remotely . | . . . . . Salvage Created 371 | 73 93 187 . 18 Parts 20 | . 4 13 . 3 Haulers Intercepted . | . . . . . Recyclers Shooed . | . . . . . Parts Field Recycled . | . . . . . Retrieved Matter . | . . . . . Parts Self-Destructed . | . . . . . Prevented . | . . . . . Parts Restored . | . . . . . Kills | -11 -10 -10 -10 -9 ------- Run | Yrd Mat Min Exi Min Combat Hostiles Destroyed 13 | . 4 8 . 1 Guns 12 | . 4 7 . 1 Classes Destroyed 3 | 1 2 . . . Recycler 1 | 1 . . . . Swarmer 10 | . 3 6 . 1 Grunt 3 | . 1 2 . . Best Kill Streak 3 | 1 3 3 . 1 Combat Bots Only 3 | . 3 3 . 1 Max Kills in Single Turn 2 | 1 1 2 . 1 Gunslinging 1 | . . 1 . . Exploded . | . . . . . Melee . | . . . . . Uniques/NPCs Destroyed . | . . . . . Combat | -11 -10 -10 -10 -9 -------- Run | Yrd Mat Min Exi Min Hostile Shots Fired 141 | . 35 62 . 44 Missed 34 | . 8 15 . 11 Hits 107 | . 27 47 . 33 Melee 3 | . . . . 3 Projectile 104 | . 27 47 . 30 Damage Taken 1114 | . 220 469 . 425 Core 233 | . 47 50 . 136 Absorbed by Shields . | . . . . . Core Remaining (%) 100 | 100 . . . . Volleys Fired 45 | 6 12 26 . 1 Largest 2 | 2 2 2 . 2 Hottest 100 | 40 40 70 . 100 Shots Fired 85 | 12 24 47 . 2 Gun 85 | 12 24 47 . 2 Cannon . | . . . . . Launcher . | . . . . . Special . | . . . . . Kinetic 68 | 12 24 32 . . Thermal 17 | . . 15 . 2 Explosive . | . . . . . Electromagnetic . | . . . . . Robot Hit Streak 16 | 2 5 16 . 1 Robot Miss Streak 7 | 2 7 3 . 1 Penetration Max . | . . . . . Secondary Targets 4 | . 1 3 . . Max Gunslinging Chain 1 | . 1 1 . . Shots Hit Robots 57 | 7 12 37 . 1 Core Hits 17 | 2 4 10 . 1 Critical Kills 1 | . 1 . . . Critical Parts Destroyed . | . . . . . Critical Strikes 3 | . 1 1 . 1 Burn 2 | . . 1 . 1 Destroy 1 | . 1 . . . Melee Attacks . | . . . . . Impact . | . . . . . Slashing . | . . . . . Piercing . | . . . . . Sneak Attacks . | . . . . . Combat Hostiles . | . . . . . Follow-up Attacks . | . . . . . Damage Inflicted 752 | 91 187 454 . 20 Guns 745 | 91 187 454 . 13 Cannons . | . . . . . Explosions . | . . . . . Melee . | . . . . . Ramming 7 | . . . . 7 Kinetic 556 | 91 187 278 . . Thermal 189 | . . 176 . 13 Explosive . | . . . . . Electromagnetic . | . . . . . Impact . | . . . . . Slashing . | . . . . . Piercing . | . . . . . Highest Corruption . | . . . . . Average Corruption . | . . . . . Corruption Purged . | . . . . . Corruption Blocked . | . . . . . Overload Shots . | . . . . . Overflow Damage . | . . . . . Projectiles . | . . . . . Explosions . | . . . . . Melee . | . . . . . Knockbacks . | . . . . . Impact . | . . . . . Kinetic . | . . . . . Secondary . | . . . . . Self-Inflicted Damage 3 | . . . . 3 Shots . | . . . . . Rammed 1 | . . . . 1 Targets Rammed 1 | . . . . 1 Kicked . | . . . . . Crushed . | . . . . . Highest Temperature 87 | . . 87 . 39 Average Temperature 43 | . . 46 . 20 Received Heat Transfer 114 | . . 114 . . Siege Activations . | . . . . . Martial Activations . | . . . . . Shielding Activations . | . . . . . Robots Disrupted . | . . . . . Combat Hostiles . | . . . . . Robots Corrupted . | . . . . . Combat Hostiles . | . . . . . Parts Fried . | . . . . . Impact Corruptions . | . . . . . Robots Melted 1 | . . 1 . . Combat Hostiles 1 | . . 1 . . Parts Melted 2 | . . 2 . . Heat Transferred 703 | . . 592 . 111 Parts Sabotaged . | . . . . . Parts Stolen . | . . . . . Parts Stripped . | . . . . . Power Chain Reactions . | . . . . . Alert | -11 -10 -10 -10 -9 ------- Run | Yrd Mat Min Exi Min Maximum Alert Level . | . . . . . Low Security (%) 100 | 100 100 100 . 100 Level 1 . | . . . . . Level 2 . | . . . . . Level 3 . | . . . . . Level 4 . | . . . . . Level 5 . | . . . . . High Security . | . . . . . Max Security . | . . . . . Peak Influence 70 | 5 50 70 . 45 Initial 3 | . 3 . . . Average 15 | . 12 19 . 33 Influence Increases 340 | 5 100 190 . 45 Destroy 0b10 Robot/C 260 | . 80 160 . 20 Destroy 0b10 Robot/NC 5 | 5 . . . . Destroy Leader 60 | . 20 30 . 10 Disable Machine 15 | . . . . 15 Influence Decreases 340 | . 105 190 . 45 Entered New Map 2 | . 2 . . . Time Decay 268 | . 103 150 . 15 Lost Part 70 | . . 40 . 30 Squads Dispatched 1 | . 1 . . . Investigation 1 | . 1 . . . Extermination . | . . . . . Reinforcement . | . . . . . Assault . | . . . . . Garrison . | . . . . . Intercept . | . . . . . Searches Triggered . | . . . . . Construction Impeded . | . . . . . Haulers Reinforced . | . . . . . Active Scanning Responses . | . . . . . Cargo Convoy Interrupts . | . . . . . Stealth | -11 -10 -10 -10 -9 --------- Run | Yrd Mat Min Exi Min Distress Signals 1 | . 1 . . . Communications Jammed . | . . . . . Distress Signals . | . . . . . Times Spotted 28 | . 4 9 . 15 Peak Tracking Total 14 | . 3 3 . 14 Tactical Retreats . | . . . . . Traps | -11 -10 -10 -10 -9 ------- Run | Yrd Mat Min Exi Min Traps Triggered 1 | . 1 . . . Indirectly . | . . . . . Trap Hack Attempts . | . . . . . Triggered . | . . . . . Disarmed . | . . . . . Reprogrammed . | . . . . . Reused . | . . . . . Traps Extracted . | . . . . . Installed . | . . . . . Triggered . | . . . . . Machines | -11 -10 -10 -10 -9 ---------- Run | Yrd Mat Min Exi Min Machines Disabled 1 | . . . . 1 Max in Single Turn 1 | . . . . 1 Machines Repaired . | . . . . . Machines Dismantled . | . . . . . Machines Sabotaged . | . . . . . Overloaded Fab Kills . | . . . . . Hacking | -11 -10 -10 -10 -9 --------- Run | Yrd Mat Min Exi Min Machines Accessed 4 | . 2 . 2 . Terminals 2 | . 2 . . . Fabricators . | . . . . . Repair Stations . | . . . . . Recycling Units . | . . . . . Scanalyzers . | . . . . . Garrison Access . | . . . . . Total Hacks 10 | . 5 . 5 . Successful 6 | . 1 . 5 . Failed 4 | . 4 . . . Catastrophic . | . . . . . Database Lockouts . | . . . . . Manual 5 | . 4 . 1 . Terminals 5 | . 5 . . . Fabricators . | . . . . . Repair Stations . | . . . . . Recycling Units . | . . . . . Scanalyzers . | . . . . . Garrison Access . | . . . . . Terminal Hacks 5 | . . . 5 . Record 4 | . . . 4 . Proto ID Catalog 1 | . . . 1 . Fabricator Hacks . | . . . . . Repair Station Hacks . | . . . . . Recycling Unit Hacks . | . . . . . Scanalyzer . | . . . . . Garrison Access Hacks . | . . . . . Unauthorized Hacks 1 | . 1 . . . Terminals 1 | . 1 . . . Operators 1 | . 1 . . . Fabricators . | . . . . . Repair Stations . | . . . . . Recycling Units . | . . . . . Scanalyzers . | . . . . . Garrison Access . | . . . . . Data Cores Recovered . | . . . . . Used . | . . . . . Hacking Detections 2 | . 2 . . . Full Trace Events 1 | . 1 . . . Feedback Events . | . . . . . Feedback Blocked . | . . . . . Robot Schematics Acquired . | . . . . . Robots Built . | . . . . . Authchips . | . . . . . Time . | . . . . . Total Robot Build Rating . | . . . . . Part Schematics Acquired . | . . . . . Parts Built . | . . . . . Authchips . | . . . . . Time . | . . . . . Total Part Build Rating . | . . . . . Part Studies Acquired . | . . . . . Parts Repaired . | . . . . . Time . | . . . . . Parts Recycled . | . . . . . Recycled Matter . | . . . . . Retrieved Matter . | . . . . . Retrieved Components . | . . . . . Parts Scanalyzed . | . . . . . Part Schematics Acquired . | . . . . . Parts Damaged . | . . . . . Bothacking | -11 -10 -10 -10 -9 ------------ Run | Yrd Mat Min Exi Min Used RIF Installer . | . . . . . Robots Hacked . | . . . . . Non-combat . | . . . . . Combat . | . . . . . Robot Hacks Applied . | . . . . . Relay Couplers Released . | . . . . . Fabnet Peak Effective % . | . . . . . Robots Rewired . | . . . . . Allies Hacked . | . . . . . Hacks Repelled . | . . . . . Allies | -11 -10 -10 -10 -9 -------- Run | Yrd Mat Min Exi Min Total Allies . | . . . . . Largest Group . | . . . . . Highest-Rated Group . | . . . . . Highest-Rated Ally . | . . . . . Total Orders . | . . . . . Ally Attacks . | . . . . . Total Damage . | . . . . . Kills . | . . . . . Allies Corrupted . | . . . . . Allies Melted . | . . . . . Intel | -11 -10 -10 -10 -9 ------- Run | Yrd Mat Min Exi Min Active Infowar (turns) 98 | . . 98 . . Seismic 98 | . . 98 . . Robot Analysis Total . | . . . . . Derelict Logs Recovered 1 | . . 1 . . Drone Launches . | . . . . . Drone Recoveries . | . . . . . Exploration | -11 -10 -10 -10 -9 ------------- Run | Yrd Mat Min Exi Min Turns Passed 1294 | 94 358 432 369 41 Spaces Moved 806 | 45 195 229 306 31 Core 7 | 6 . 1 . . Treads 351 | 39 195 117 . . Legs 440 | . . 111 306 23 Wheels 8 | . . . . 8 Hover . | . . . . . Flight . | . . . . . Fastest Speed 50 | 50 160 120 120 95 Average Speed 137 | 148 160 142 120 113 Slowest Speed 300 | 160 160 300 120 120 Overloaded Moves . | . . . . . Propulsion Burnouts . | . . . . . Robots Hopped . | . . . . . Potential Cave-ins . | . . . . . Cave-ins Triggered . | . . . . . Exploration Rate (%) 34 | 4 45 54 61 6 Regions Visited 4 Branch Regions 3 Pre-discovered Areas 1 | . . . 1 . Known Exits Taken 1 | . . 1 . . Unknown Exits Taken 3 | 1 1 . 1 . Scrap Searched 3 | . . 3 . . Spaces Dug . | . . . . . Terrain Destroyed . | . . . . . Melee . | . . . . . Projectile . | . . . . . AOE . | . . . . . Terrain Rammed . | . . . . . Walls Destroyed . | . . . . . Machines Disabled . | . . . . . Actions | -11 -10 -10 -10 -9 --------- Run | Yrd Mat Min Exi Min Total 904 | 57 216 288 308 35 Wait 24 | . 7 17 . . Move 802 | 44 194 228 305 31 Hop . | . . . . . Pick Up 7 | 1 1 3 2 . Fast Attach 12 | 6 1 5 . . Attach 4 | . . 3 . 1 Detach 4 | . . 3 . 1 Swap 2 | . 1 1 . . Drop 3 | . . 2 1 . Fire 45 | 6 12 26 . 1 Melee . | . . . . . Ram 1 | . . . . 1 Kick . | . . . . . Crush . | . . . . . Escape Stasis . | . . . . . Rewire . | . . . . . Trap . | . . . . . Miscellaneous . | . . . . . Route ------- -11/Scrapyard -10/Materials (discovered 2 exits: [*Mat] / [*Min]) -10/Mines (discovered 2 exits: [*Mat] / *Exi) -10/Exiles (discovered 2 exits: [*Min x2]) -9/Mines History --------- Turn | Location | Event 8 | -11/Scrapyard | Discovered new exit (range 14) 95 | -11/Scrapyard | Entered Materials 96 | -10/Materials | Met a group of wandering Federalists 300 | -10/Materials | Build established: Mutant 339 | -10/Materials | Discovered new exit (range 10) 395 | -10/Materials | Discovered new exit (range 13) 453 | -10/Materials | Entered Mines 499 | -10/Mines | Discovered new exit (range 10) 620 | -10/Mines | Identified exit to Exiles 754 | -10/Mines | Lost 3 parts (1p1n1w) 799 | -10/Mines | Joined a pair of Derelicts in attacking an 0b10 outpost 880 | -10/Mines | Deemed a non-threat by the Exiles lab entrance 885 | -10/Mines | Entered Exiles 903 | -10/Exiles | Discovered new exit (range 15) 918 | -10/Exiles | Met 8R-AWN 936 | -10/Exiles | Met EX-HEX 993 | -10/Exiles | Met EX-BIN 1011 | -10/Exiles | Aligned with FarCom system 1013 | -10/Exiles | Given EX-Vault access code 1040 | -10/Exiles | Opened EX-Vault 1047 | -10/Exiles | Found Trap Reconfigurator 1071 | -10/Exiles | Warned to stay clear of 0b10 Research branches 1110 | -10/Exiles | Met EX-DEC 1114 | -10/Exiles | Learned location of Zion (-6) 1242 | -10/Exiles | Discovered new exit (range 12) 1254 | -10/Exiles | Left Exiles lab with Trap Reconfigurator 1254 | -10/Exiles | Entered Mines 1255 | -9/Mines | Assembled infested the area 1260 | -9/Mines | Assisted by a Guerilla fighting off Assembled 1269 | -9/Mines | Met a Derelict bent on vengeance 1276 | -9/Mines | Core integrity fell below 50% 1295 | -9/Mines | Self-destructed Last Messages --------------- 01259_ S-10 Pest knocked back. 01259_ HV Slug penetrates Seismic Survey Station. 01260_ A derelict emerges from the shadows: "You need to get out of here! I've been tracking a group of Assembled to figure out where they're coming from, and they're closing on this area, come on!" 01261_ HV Slug penetrates Seismic Survey Station. 01261_ Seismic Survey Station disabled. 01265_ HV Slug penetrates Seismic Survey Station. 01273_ HV Slug penetrates S-10 Pest. 01273_ S-10 Pest knocked back. 01275_ S-10 Pest destroyed. 01278_ as-53854 destroyed. 01278_ S-10 Pest destroyed. 01282_ HV Slug penetrates as-77969. 01282_ as-77969 knocked back. 01285_ as-67504 suffers critical hit (Destroy). 01286_ ZY-QIT(h) destroyed. 01287_ Med. Laser destroyed. 01292_ Aluminum Leg destroyed. 01294_ Slammed into as-52176. Map ----- +----------------------------------------------------+ | ??????????????????????????????????????? | | ??????????????????????????????????????? | | ??????????????????????????????????????? | | ??????????????????????????????????????? | | ??????????????????????????????????????? | | ??????????????????????????????????????? | | ??????????????????????????????????????? | | ??????????????????????????????????????? | | ??????????????????????????????????????? | | ??????????????????????????????????????? | | ??????????????????????????????????????? | | ??????????????????????????????????????? | | ??????????????????????????????????????? | | ??????????????????????????????????????? | | ??????????????????????????????????????? | | ??????????????????????????????????????? | | ??????????????????????????????????????? | | ????????????????###########???????????? | | ????????????????# #???????????? | | ????????????????# #???????????? | | ????????????????# ##??????????? | | ????????????????# """ "" ;#??????????? | | ????????????????# " "=a a ##??????????? | | ????????????????# " %[ "a#???????????? | | ????????????????#!%[aaa a ##??????????? | | ????????????????# = =%a @;#??????????? | | ????????????????#a %"""a##??????????? | | ????????????????# % %""" #???????????? | | ????????????????# a #???????????? | | ????????????????# #???????????? | | ????????????????####;## ##???????????? | | ???????????????????#### #????????????? | | ??????????????????????# #????????????? | | ??????????????????????# #????????????? | | ?????????????????????? #????????????? | | ?????????????????????? ????????????? | | ?????????????????????? ????????????? | | ????????????????????? ????????????? | | ?????????????????????? ##???????????? | | ??????????????????????###?????????????? | | ??????????????????????????????????????? | | | | | | | | | | | | | | | | | | | +----------------------------------------------------+ Best States ------------- Heat Dissipation 25 Energy Generation 10 Energy Capacity 250 Matter Stores 350 Matter Capacity 350 Sight Range 16 Terrain Scan Density 10 Evasion (%) 55 Targeting Accuracy 5 Recoil Reduction 2 Item Schematics ----------------- None Robot Schematics ------------------ None Fabricated ------------ Nothing Repaired ---------- Nothing Studied --------- None Alien Tech Used ----------------- None Achievements -------------- None Challenges ------------ None Game ------ Seed ShrapnelCloakDirector Manual? 0 Play Time 00:09:39 Cumulative 29.4 hours Start 2025.11.08 @ 14:39:26 End 2025.11.08 @ 14:48:29 Sessions 1 Manual Loads 0 Difficulty Rogue Special Mode None Game No. 62 Rogue 62 Adventurer 0 Explorer 0 Win Type - Total 0 Types 0/0/0/0/0/0/0/0/0/0 Lore% 16 Gallery% 26 Achievement% 23 Wizard Run 0 Options --------- Layout 0 ASCII 1 Keyboard 1 Movement Numpad Keybinds 0 Fullscreen 1 Font 18/VGA_Max Map View 76x50 Zoom Use 0% Tactical HUD 1 Map Filters NONE Filters NONE Steam 1 RUN: 14e7aa71-959d-4ec6-9167-6f072e1e94d2